bitfinex-derivatives/quotes_BNBF0:USTF0_20251002
["timestamp","ask_amount","ask_price","bid_price","bid_amount"]
[1759434027939,0.54719912,1072.4,1069.9,2.07886106]
[1759434028138,0.54719912,1072.3,1069.9,2.07886106]
[1759434028344,0.54719912,1072.2,1069.6,2.07886106]
[1759434028540,0.54719912,1072.1,1069.6,2.07886106]
[1759434028738,0.54719912,1072.0,1069.6,2.07886106]
[1759434028942,0.54719912,1071.9,1069.6,2.07886106]
[1759434029242,0.83537402,1072.6,1069.6,2.07886106]
[1759434029443,0.5471531,1072.5,1069.6,2.07886106]
[1759434029742,0.5471531,1072.4,1069.6,2.07886106]
[1759434030042,0.5471531,1072.3,1069.6,2.07886106]
[1759434030239,0.5471531,1072.2,1069.6,2.07886106]
[1759434030539,0.5471531,1072.1,1069.6,2.07886106]
[1759434030738,0.5471531,1072.0,1069.6,2.07886106]
[1759434030938,0.5471531,1071.9,1069.6,2.07886106]
[1759434031244,0.83537402,1072.6,1069.6,2.08286106]
[1759434031544,0.54711725,1072.5,1069.6,2.08286106]
[1759434031741,0.54711725,1072.4,1069.7,1.48729298]
[1759434031944,0.54711725,1072.3,1069.7,1.48729298]
[1759434032143,0.54711725,1072.2,1069.7,1.48729298]
[1759434032341,0.54711725,1072.1,1069.7,1.48729298]
[1759434032546,0.54711725,1072.0,1069.7,1.48729298]
[1759434032843,0.54711725,1071.9,1069.7,1.48729298]
[1759434033042,0.83537402,1072.6,1069.7,1.48729298]
[1759434033243,0.54710193,1072.5,1069.7,1.48729298]
[1759434033541,0.54710193,1072.4,1069.7,1.48729298]
[1759434033745,0.54710193,1072.3,1069.7,1.48729298]
[1759434033948,0.54710193,1072.2,1069.7,1.48729298]
[1759434034146,0.54710193,1072.1,1069.7,1.48729298]
[1759434034441,0.54710193,1072.0,1069.7,1.48729298]
[1759434034645,0.54710193,1071.9,1069.7,1.48729298]
[1759434034842,0.83537402,1072.6,1069.7,1.48729298]
[1759434035047,0.54708394,1072.5,1069.7,1.48729298]
[1759434035243,0.83537402,1072.6,1069.7,1.48729298]
[1759434035244,0.54708394,1072.4,1069.7,1.48729298]
[1759434035443,0.54708394,1072.3,1069.7,1.48729298]
[1759434035743,0.54708394,1072.2,1069.7,1.48729298]
[1759434036046,0.54708394,1072.1,1069.7,1.48729298]
[1759434036244,0.54708394,1072.0,1069.7,1.48729298]
[1759434036442,0.83537402,1072.5,1069.7,1.48729298]
[1759434036643,0.54702623,1072.4,1070.0,2.07886106]
[1759434036843,0.54702623,1072.3,1070.0,2.07886106]
[1759434037046,0.54702623,1072.2,1070.0,2.07886106]
[1759434037243,0.54702623,1072.1,1070.0,2.07886106]
[1759434037443,0.54702623,1072.0,1070.0,2.07886106]
[1759434037642,0.83537402,1072.5,1070.0,2.07886106]
[1759434037845,0.54700113,1072.4,1070.0,2.07886106]
[1759434038045,0.54700113,1072.3,1070.0,2.07886106]
[1759434038247,0.54700113,1072.2,1069.7,1.48729298]
[1759434038449,0.54700113,1072.1,1069.7,1.48729298]
[1759434038745,0.54700113,1072.0,1069.7,1.48729298]
[1759434038948,0.54700113,1071.9,1069.7,1.48729298]
[1759434039245,0.83537402,1072.7,1069.7,1.48729298]
[1759434039447,0.54701506,1072.6,1069.7,1.48729298]
[1759434039648,0.83537402,1072.7,1069.7,1.48729298]
[1759434039649,0.54701506,1072.5,1069.7,1.48729298]
[1759434039948,0.54701506,1072.4,1069.7,1.48729298]
[1759434040149,0.54701506,1072.3,1069.7,1.48729298]
[1759434040347,0.54701506,1072.2,1069.7,1.48729298]
[1759434040545,0.54701506,1072.1,1069.7,1.48729298]
[1759434040748,0.54701506,1072.0,1069.7,1.48729298]
[1759434040948,0.54701506,1071.9,1069.7,1.48729298]
[1759434041149,0.54701502,1071.8,1069.7,1.48729298]
[1759434041349,0.54701502,1071.7,1069.7,1.48729298]
[1759434041649,0.54701502,1071.6,1069.7,1.48729298]
[1759434041845,0.83537402,1072.2,1069.7,1.48729298]
[1759434042045,0.54712768,1072.1,1069.7,1.48729298]
[1759434042247,0.54712768,1072.0,1069.7,1.48729298]
[1759434042446,0.54712768,1071.9,1069.7,1.48729298]
[1759434042746,0.54712768,1071.8,1069.7,1.48729298]
[1759434042945,0.54712768,1071.7,1069.7,1.48729298]
[1759434043249,0.54712768,1071.6,1069.7,1.48729298]
[1759434043449,0.83537402,1072.1,1069.7,1.48729298]
[1759434043749,0.54709248,1072.0,1069.7,1.48729298]
[1759434043947,0.54709248,1071.9,1069.7,1.48729298]
[1759434044250,0.54709248,1071.8,1069.7,1.48729298]
[1759434044450,0.54709248,1071.7,1069.7,1.48729298]
[1759434044750,0.54709248,1071.6,1069.7,1.48729298]
[1759434044947,0.54709248,1071.5,1069.7,1.48729298]
[1759434045146,0.83537402,1072.1,1069.7,1.48729298]
[1759434045346,1.38255578,1072.0,1069.7,1.48729298]
[1759434045650,0.54718176,1071.9,1069.7,1.48729298]
[1759434045950,0.54718176,1071.8,1069.7,1.48729298]
[1759434046151,0.54718176,1071.7,1069.7,1.48729298]
[1759434046448,0.54718176,1071.6,1069.7,1.48729298]
[1759434046751,0.83537402,1072.2,1069.7,1.48729298]
[1759434046951,0.54710988,1072.1,1069.7,1.48729298]
[1759434047150,0.83537402,1072.2,1069.7,1.48729298]
[1759434047350,0.54711679,1072.1,1069.7,1.48729298]
[1759434047548,0.54711679,1072.0,1069.7,1.48729298]
[1759434047751,0.54711679,1071.9,1069.7,1.48729298]
[1759434047948,0.54711679,1071.8,1069.7,1.48729298]
[1759434048148,0.83543447,1072.2,1069.7,1.48729298]
[1759434048149,0.54711679,1071.7,1069.7,1.48729298]
[1759434048350,0.83543447,1072.2,1069.7,1.48729298]
[1759434048549,0.54714539,1072.1,1069.7,1.48729298]
[1759434048747,0.54714539,1072.0,1069.7,3.56615404]
[1759434048948,0.54714539,1071.9,1069.7,3.56615404]
[1759434049251,0.54714539,1071.8,1069.7,3.56615404]
[1759434049548,0.54714539,1071.7,1069.7,3.56615404]
[1759434049748,0.83543447,1072.2,1069.8,2.07886106]
[1759434049949,0.54711736,1072.1,1069.8,2.07886106]
[1759434050152,0.54711736,1072.0,1069.8,2.07886106]
[1759434050452,0.54711736,1071.9,1069.9,2.07886106]
[1759434050648,0.54711736,1071.8,1069.9,2.07886106]
[1759434050850,0.83543447,1072.3,1069.9,2.07886106]
[1759434051050,0.54715872,1072.2,1069.9,2.07886106]
[1759434051253,0.54715872,1072.1,1069.9,2.07886106]
[1759434051448,0.54715872,1072.0,1069.9,2.07886106]
[1759434051654,0.54715872,1071.9,1069.9,2.07886106]
[1759434051950,0.54715872,1071.8,1069.9,2.07886106]
[1759434052150,0.83543447,1072.3,1069.9,2.07886106]
[1759434052355,0.54724133,1072.2,1069.8,2.07886106]
[1759434052649,0.54724133,1072.1,1069.8,2.07886106]
[1759434052856,0.54724133,1072.0,1069.7,3.56615404]
[1759434053151,0.54724133,1071.9,1069.7,3.56615404]
[1759434053356,0.54724133,1071.8,1069.7,3.56615404]
[1759434053555,0.54724133,1071.7,1069.7,3.56615404]
[1759434053856,0.83543447,1072.3,1069.7,3.56615404]
[1759434054053,0.54727613,1072.2,1069.7,3.56615404]
[1759434054254,0.54727613,1072.1,1069.7,3.56615404]
[1759434054557,0.54727613,1072.0,1069.7,3.56615404]
[1759434054758,0.54727613,1071.9,1069.7,3.56615404]
[1759434055053,0.54727613,1071.8,1069.7,3.56615404]
[1759434055255,0.54727613,1071.7,1069.7,3.56615404]
[1759434055459,0.83543447,1072.4,1069.7,1.48729298]
[1759434055659,0.54733261,1072.3,1069.7,1.48729298]
[1759434055856,0.54733261,1072.2,1069.7,1.48729298]
[1759434056160,0.54733261,1072.1,1069.7,1.48729298]
[1759434056360,0.54733261,1072.0,1069.7,1.48729298]
[1759434056558,0.54733261,1071.9,1069.7,1.48729298]
[1759434056755,0.54733261,1071.8,1069.7,1.48729298]
[1759434057060,0.54733261,1071.7,1069.7,1.48729298]
[1759434057261,0.83543447,1072.4,1069.7,1.48729298]
[1759434057461,0.54740749,1072.3,1069.7,1.48729298]
[1759434057757,0.54740749,1072.2,1069.7,1.48729298]
[1759434057955,0.54740749,1072.1,1069.7,1.48729298]
[1759434058156,0.54740749,1072.0,1069.7,1.48729298]
[1759434058360,0.54740749,1071.9,1069.7,1.48729298]
[1759434058562,0.83543447,1072.6,1069.7,1.48729298]
[1759434058759,0.54737849,1072.5,1069.7,1.48729298]
[1759434058958,0.54737849,1072.4,1069.7,1.48729298]
[1759434059261,0.54737849,1072.3,1070.1,2.07886106]
[1759434059460,0.54737849,1072.2,1070.1,2.07886106]
[1759434059662,0.54737849,1072.1,1069.7,3.56615404]
[1759434059961,0.83543447,1072.7,1069.7,3.56615404]
[1759434060258,0.54726914,1072.6,1069.7,3.56615404]
[1759434060461,0.54726914,1072.5,1069.7,3.56615404]
[1759434060661,0.54726914,1072.4,1069.8,2.07886106]
[1759434060858,0.54726914,1072.3,1069.8,2.07886106]
[1759434061062,0.83543447,1073.5,1069.8,2.07886106]
[1759434061257,0.54711908,1073.4,1069.7,1.48729298]
[1759434061462,0.54711908,1073.3,1069.7,1.48729298]
[1759434061760,0.83543447,1073.5,1069.7,1.48729298]
[1759434061761,0.54711908,1073.2,1069.7,1.48729298]
[1759434061960,0.54711908,1073.1,1069.7,1.48729298]
[1759434062159,0.54711908,1073.0,1069.7,1.48729298]
[1759434062359,0.54711908,1072.9,1069.7,1.48729298]
[1759434062559,0.54711908,1072.8,1069.7,1.48729298]
[1759434062762,0.54711908,1072.7,1069.7,1.48729298]
[1759434062961,0.54711908,1072.6,1069.7,1.48729298]
[1759434063159,0.54711908,1072.5,1069.7,1.48729298]
[1759434063359,0.54711908,1072.4,1069.7,1.48729298]
[1759434063563,0.83543447,1073.5,1069.7,1.48729298]
[1759434063760,0.54645803,1073.4,1069.7,1.48729298]
[1759434063964,0.54645803,1073.3,1069.7,1.48729298]
[1759434064265,0.54645803,1073.2,1069.7,1.48729298]
[1759434064564,0.54645803,1073.1,1069.7,1.48729298]
[1759434064760,0.54645803,1073.0,1069.7,1.48729298]
[1759434064964,0.54645803,1072.9,1069.7,1.48729298]
[1759434065159,0.54645803,1072.8,1069.7,1.48729298]
[1759434065360,0.54645803,1072.7,1069.7,1.48729298]
[1759434065560,0.54645803,1072.6,1069.7,1.48729298]
[1759434065863,0.54645803,1072.5,1069.7,1.48729298]
[1759434066161,0.83543447,1073.6,1069.7,1.48729298]
[1759434066364,0.54595498,1073.5,1069.7,1.48729298]
[1759434066560,0.54595498,1073.4,1069.7,1.48729298]
[1759434066765,0.54595498,1073.3,1069.7,1.48729298]
[1759434066962,0.54595498,1073.2,1069.7,1.48729298]
[1759434067261,0.54595498,1073.1,1069.7,1.48729298]
[1759434067459,0.54595498,1073.0,1069.7,1.48729298]
[1759434067661,0.54595498,1072.9,1069.7,1.48729298]
[1759434067865,0.54595498,1072.8,1069.7,1.48729298]
[1759434068065,0.54595498,1072.7,1069.7,1.48729298]
[1759434068265,0.54595498,1072.6,1069.7,1.48729298]
[1759434068461,0.54595498,1072.5,1069.7,1.48729298]
[1759434068764,0.83543447,1073.5,1069.7,1.48729298]
[1759434068961,0.83543447,1073.2,1069.9,2.07886106]
[1759434069166,0.54570026,1073.1,1069.9,2.07886106]
[1759434069361,0.54570026,1073.0,1069.9,2.07886106]
[1759434069563,0.54570026,1072.9,1069.9,2.07886106]
[1759434069761,0.54570026,1072.8,1069.9,2.07886106]
[1759434069964,0.54570026,1072.7,1069.9,2.07886106]
[1759434070161,0.54570026,1072.6,1069.7,1.48729298]
[1759434070365,0.54570026,1072.5,1069.7,1.48729298]
[1759434070565,0.83543447,1073.2,1069.7,1.48729298]
[1759434070762,0.5455512,1073.1,1069.7,1.48729298]
[1759434071062,0.5455512,1073.0,1069.7,1.48729298]
[1759434071266,0.5455512,1072.9,1069.7,1.48729298]
[1759434071466,0.5455512,1072.8,1069.7,1.48729298]
[1759434071666,0.5455512,1072.7,1069.7,1.48729298]
[1759434071866,0.5455512,1072.6,1069.7,1.48729298]
[1759434072064,0.5455512,1072.5,1069.7,1.48729298]
[1759434072363,0.83543447,1073.2,1069.7,1.48729298]
[1759434072566,0.54536251,1073.1,1069.7,1.48729298]
[1759434072766,0.54536251,1073.0,1069.7,1.48729298]
[1759434072965,0.54536251,1072.9,1069.7,1.48729298]
[1759434073269,0.54536251,1072.8,1069.7,1.48729298]
[1759434073465,0.54536251,1072.7,1069.7,1.48729298]
[1759434073769,0.54536251,1072.6,1070.1,2.07886106]
[1759434073969,0.83543447,1073.3,1070.1,2.07886106]
[1759434074166,0.54549022,1073.2,1070.1,2.07886106]
[1759434074365,0.54549022,1073.1,1070.1,2.07886106]
[1759434074568,0.54549022,1073.0,1070.1,2.07886106]
[1759434074768,0.54549022,1072.9,1070.1,2.07886106]
[1759434075068,0.54549022,1072.8,1070.1,2.07886106]
[1759434075366,0.54549022,1072.7,1070.0,2.07886106]
[1759434075565,0.83543447,1073.4,1070.0,2.07886106]
[1759434075769,0.54508865,1073.3,1070.0,2.07886106]
[1759434075965,0.54508865,1073.2,1070.0,2.07886106]
[1759434076269,0.54508865,1073.1,1070.0,2.07886106]
[1759434076469,0.54508865,1073.0,1070.0,2.07886106]
[1759434076764,0.54508865,1072.9,1069.9,2.07886106]
[1759434076966,0.54508865,1072.8,1069.9,2.07886106]
[1759434077167,0.83543447,1073.7,1069.9,2.07886106]
[1759434077168,0.83543447,1073.8,1069.9,2.07886106]
[1759434077366,0.54430477,1073.7,1070.1,2.07886106]
[1759434077570,0.54430477,1073.6,1070.1,2.07886106]
[1759434077769,0.54430477,1073.5,1070.1,2.07886106]
[1759434077968,0.54430477,1073.4,1070.1,2.07886106]
[1759434078265,0.54430477,1073.3,1070.1,2.07886106]
[1759434078464,0.54430477,1073.2,1070.0,2.07886106]
[1759434078768,0.54430477,1073.1,1070.0,2.07886106]
[1759434078967,0.83543447,1073.8,1070.1,2.07886106]
[1759434079170,0.54394185,1073.7,1070.1,2.07886106]
[1759434079467,0.54394185,1073.6,1070.0,2.07886106]
[1759434079668,0.54394185,1073.5,1070.0,2.07886106]
[1759434079867,0.54394185,1073.4,1070.0,2.07886106]
[1759434080066,0.54394185,1073.3,1070.0,2.07886106]
[1759434080265,0.54394185,1073.2,1070.0,2.07886106]
[1759434080469,0.54394185,1073.1,1070.0,2.07886106]
[1759434080670,0.83543447,1073.8,1070.0,2.07886106]
[1759434080967,0.543313,1073.7,1070.0,2.07886106]
[1759434081267,0.543313,1073.6,1070.0,2.07886106]
[1759434081471,0.543313,1073.5,1070.0,2.07886106]
[1759434081670,0.543313,1073.4,1070.0,2.07886106]
[1759434081871,0.543313,1073.3,1070.0,2.07886106]
[1759434082071,0.543313,1073.2,1070.0,2.07886106]
[1759434082271,0.543313,1073.1,1070.0,2.07886106]
[1759434082469,0.83543447,1073.7,1070.0,2.07886106]
[1759434082669,0.54275664,1073.6,1070.0,2.07886106]
[1759434082972,0.54275664,1073.5,1070.0,2.07886106]
[1759434083174,0.54275664,1073.4,1070.0,2.07886106]
[1759434083470,0.54275664,1073.3,1070.0,2.07886106]
[1759434083769,0.54275664,1073.2,1069.9,2.07886106]
[1759434083971,0.54275664,1073.1,1069.9,2.07886106]
[1759434084172,0.83543447,1073.7,1069.9,2.07886106]
[1759434084374,0.54229706,1073.6,1069.9,2.07886106]
[1759434084572,0.54229706,1073.5,1069.9,2.07886106]
[1759434084875,0.54229706,1073.4,1069.9,2.07886106]
[1759434085073,0.54229706,1073.3,1069.9,2.07886106]
[1759434085276,0.54229706,1073.2,1070.0,2.07886106]
[1759434085476,0.54229706,1073.1,1070.0,2.07886106]
[1759434085677,0.83543447,1073.7,1069.8,2.07886106]
[1759434085973,0.54209317,1073.6,1069.8,2.07886106]
[1759434086176,0.54209317,1073.5,1069.8,2.07886106]
[1759434086376,0.54209317,1073.4,1069.8,2.07886106]
[1759434086676,0.54209317,1073.3,1069.8,2.07886106]
[1759434086875,0.54209317,1073.2,1069.7,1.48729298]
[1759434087075,0.54209317,1073.1,1069.7,1.48729298]
[1759434087373,0.83543447,1073.9,1069.7,1.48729298]
[1759434087573,0.54173217,1073.8,1069.7,1.48729298]
[1759434087776,0.54173217,1073.7,1069.7,1.48729298]
[1759434088076,0.54173217,1073.6,1069.7,1.48729298]
[1759434088375,0.54173217,1073.5,1069.7,1.48729298]
[1759434088572,0.54173217,1073.4,1069.7,1.48729298]
[1759434088772,0.54173217,1073.3,1069.7,1.48729298]
[1759434088977,0.54173217,1073.2,1069.7,1.48729298]
[1759434089175,0.54173217,1073.1,1069.7,1.48729298]
[1759434089372,0.54173217,1073.0,1069.7,1.48729298]
[1759434089675,0.83543447,1073.7,1069.7,1.48729298]
[1759434089872,0.54150313,1073.6,1069.7,1.48729298]
[1759434090071,0.54150313,1073.5,1069.7,1.48729298]
[1759434090276,0.54150313,1073.4,1069.7,1.48729298]
[1759434090472,0.54150313,1073.3,1069.7,1.48729298]
[1759434090676,0.54150313,1073.2,1069.7,1.48729298]
[1759434090877,0.54150313,1073.1,1069.7,1.48729298]
[1759434091173,0.54150313,1073.0,1069.7,1.48729298]
[1759434091374,0.83543447,1073.7,1069.7,1.48729298]
[1759434091573,0.54130275,1073.6,1069.7,1.48729298]
[1759434091774,0.54130275,1073.5,1069.7,1.48729298]
[1759434091977,0.54130275,1073.4,1069.7,1.48729298]
[1759434092177,0.54130275,1073.3,1069.7,1.48729298]
[1759434092378,0.54130275,1073.2,1069.7,1.48729298]
[1759434092576,0.54130275,1073.1,1069.7,1.48729298]
[1759434092773,0.54130275,1073.0,1069.7,1.48729298]
[1759434092972,0.83543447,1073.7,1069.7,1.48729298]
[1759434093171,1.37665705,1073.6,1069.7,1.48729298]
[1759434093376,0.54122258,1073.5,1069.7,1.48729298]
[1759434093573,0.54122258,1073.4,1069.8,2.07886106]
[1759434093876,0.54122258,1073.3,1069.8,2.07886106]
[1759434094075,0.54122258,1073.2,1069.8,2.07886106]
[1759434094273,0.54122258,1073.1,1069.8,2.07886106]
[1759434094473,0.54122258,1073.0,1069.8,2.07886106]
[1759434094674,0.83543447,1073.8,1069.7,1.48729298]
[1759434094873,0.54105938,1073.7,1069.7,1.48729298]
[1759434095072,0.54105938,1073.6,1069.7,1.48729298]
[1759434095276,0.54105938,1073.5,1069.7,1.48729298]
[1759434095577,0.54105938,1073.4,1069.7,1.48729298]
[1759434095773,0.54105938,1073.3,1069.7,1.48729298]
[1759434096076,0.54105938,1073.2,1069.7,1.48729298]
[1759434096278,0.54105938,1073.1,1069.7,1.48729298]
[1759434096477,0.54105938,1073.0,1069.7,1.48729298]
[1759434096677,0.83543447,1073.8,1069.7,1.48729298]
[1759434096973,0.54091492,1073.7,1069.7,1.48729298]
[1759434097276,0.54091492,1073.6,1069.7,1.48729298]
[1759434097472,0.54091492,1073.5,1069.7,1.48729298]
[1759434097673,0.54091492,1073.4,1069.7,1.48729298]
[1759434097878,0.54091492,1073.3,1069.7,1.48729298]
[1759434098079,0.54091492,1073.2,1069.7,1.48729298]
[1759434098275,0.54091492,1073.1,1069.7,1.48729298]
[1759434098478,0.54091492,1073.0,1069.7,1.48729298]
[1759434098779,0.540857,1072.9,1069.7,1.48729298]
[1759434098976,0.540857,1072.8,1069.7,1.48729298]
[1759434099178,0.83543447,1073.8,1069.7,1.48729298]
[1759434099379,0.54093416,1073.7,1069.7,1.48729298]
[1759434099582,0.54093416,1073.6,1069.7,1.48729298]
[1759434099875,0.83543447,1073.8,1069.7,1.48729298]
[1759434099876,0.54093416,1073.5,1069.7,1.48729298]
[1759434100079,0.83543447,1073.8,1069.7,1.48729298]
[1759434100080,0.54093416,1073.4,1069.7,1.48729298]
[1759434100280,0.54093416,1073.3,1069.7,1.48729298]
[1759434100576,0.54093416,1073.2,1069.7,1.48729298]
[1759434100776,0.54093416,1073.1,1069.7,1.48729298]
[1759434100980,0.54093416,1073.0,1069.7,1.48729298]
[1759434101178,0.54093416,1072.9,1069.7,1.48729298]
[1759434101478,0.54093416,1072.8,1069.7,1.48729298]
[1759434101681,0.54093416,1072.7,1069.7,1.48729298]
[1759434101882,0.54093416,1072.6,1069.7,1.48729298]
[1759434102077,0.83543447,1073.1,1069.7,1.48729298]
[1759434102279,0.54131664,1073.0,1069.7,1.48729298]
[1759434102576,0.54131664,1072.9,1069.7,1.48729298]
[1759434102781,0.54131664,1072.8,1069.7,1.48729298]
[1759434102978,0.54131664,1072.7,1069.7,1.48729298]
[1759434103178,0.83543447,1073.8,1069.7,1.48729298]
[1759434103382,0.54151325,1073.7,1069.7,1.48729298]
[1759434103584,0.54151325,1073.6,1069.7,1.48729298]
[1759434103782,0.54151325,1073.5,1069.7,1.48729298]
[1759434103986,1.41530976,1074.2,1069.7,1.48729298]
[1759434103987,0.54151325,1073.4,1069.7,1.48729298]
[1759434104283,0.54151325,1073.3,1069.7,1.48729298]
[1759434104486,0.54151325,1073.2,1069.8,2.07886106]
[1759434104682,0.54151325,1073.1,1069.8,2.07886106]
[1759434104882,0.54151325,1073.0,1069.8,2.07886106]
[1759434105086,0.83543447,1073.7,1069.8,2.07886106]
[1759434105288,0.54703511,1073.6,1069.8,2.07886106]
[1759434105583,0.54703511,1073.5,1069.7,3.56615404]
[1759434105883,0.54703511,1073.4,1069.7,3.56615404]
[1759434106087,0.54703511,1073.3,1069.7,3.56615404]
[1759434106283,0.54703511,1073.2,1069.7,3.56615404]
[1759434106482,0.54703511,1073.1,1069.7,3.56615404]
[1759434106688,0.83543447,1073.8,1069.7,3.56615404]
[1759434106886,0.54724632,1073.7,1069.7,3.56615404]
[1759434107089,0.54724632,1073.6,1069.7,1.48729298]
[1759434107289,0.54724632,1073.5,1069.7,1.48729298]
[1759434107485,0.54740767,1073.4,1069.7,1.48729298]
[1759434107684,0.83543447,1073.8,1069.7,1.48729298]
[1759434107685,0.54740767,1073.3,1069.7,1.48729298]
[1759434107888,0.54740767,1073.2,1069.7,1.48729298]
[1759434108086,0.54740767,1073.1,1069.7,1.48729298]
[1759434108389,0.83543447,1073.8,1069.7,3.56615404]
[1759434108586,0.54760034,1073.7,1069.7,3.56615404]
[1759434108886,0.54760034,1073.6,1069.7,3.56615404]
[1759434109090,0.54760034,1073.5,1069.7,3.56615404]
[1759434109290,0.54760034,1073.4,1069.7,3.56615404]
[1759434109490,0.54760034,1073.3,1069.7,1.48729298]
[1759434109693,0.54760034,1073.2,1069.7,1.48729298]
[1759434109893,0.54760034,1073.1,1069.7,1.48729298]
[1759434110096,0.54760034,1073.0,1069.7,1.48729298]
[1759434110296,0.83543447,1073.9,1069.7,1.48729298]
[1759434110495,0.54805021,1073.8,1069.7,1.48729298]
[1759434110794,0.54805021,1073.7,1069.7,1.48729298]
[1759434110993,0.54805021,1073.6,1069.7,1.48729298]
[1759434111194,0.54805021,1073.5,1069.7,1.48729298]
[1759434111392,0.54805021,1073.4,1069.7,1.48729298]
[1759434111597,0.54805021,1073.3,1069.7,1.48729298]
[1759434111797,0.54805021,1073.2,1069.7,1.48729298]
[1759434112097,0.54805021,1073.1,1070.3,2.07886106]
[1759434112299,0.54805021,1073.0,1070.3,2.07886106]
[1759434112593,0.83543447,1073.6,1070.3,2.07886106]
[1759434112798,1.38393458,1073.5,1070.3,2.07886106]
[1759434113093,0.54850011,1073.4,1070.3,2.07886106]
[1759434113297,0.54850011,1073.3,1070.3,2.07886106]
[1759434113495,0.54850011,1073.2,1070.4,2.07886106]
[1759434113697,0.54850011,1073.1,1070.4,2.07886106]
[1759434113995,0.54850011,1073.0,1070.4,2.07886106]
[1759434114198,0.83543447,1073.6,1070.4,2.07886106]
[1759434114496,0.54906821,1073.5,1070.4,2.07886106]
[1759434114699,0.54906821,1073.4,1070.4,2.07886106]
[1759434114893,0.54906821,1073.3,1070.4,2.07886106]
[1759434115097,0.54906821,1073.2,1070.4,2.07886106]
[1759434115295,0.83543447,1073.6,1070.4,2.07886106]
[1759434115296,0.54906821,1073.1,1070.4,2.07886106]
[1759434115493,0.54906821,1073.0,1070.4,2.07886106]
[1759434115693,0.83543447,1073.6,1070.5,2.07886106]
[1759434115991,0.54940107,1073.5,1070.5,2.07886106]
[1759434116195,0.54940107,1073.4,1070.5,2.07886106]
[1759434116394,0.54940107,1073.3,1070.5,2.07886106]
[1759434116592,0.54940107,1073.2,1070.5,2.07886106]
[1759434116793,0.54940107,1073.1,1070.6,2.07886106]
[1759434116996,0.54940107,1073.0,1070.6,2.07886106]
[1759434117196,0.83543447,1073.6,1070.7,2.07886106]
[1759434117395,0.55020616,1073.5,1070.7,2.07886106]
[1759434117596,0.55020616,1073.4,1070.7,2.07886106]
[1759434117794,0.55020616,1073.3,1070.7,2.07886106]
[1759434118093,0.55020616,1073.2,1070.7,2.07886106]
[1759434118294,0.55020616,1073.1,1070.6,2.07886106]
[1759434118495,0.55020616,1073.0,1070.6,2.07886106]
[1759434118695,0.83543447,1073.6,1070.6,2.07886106]
[1759434118895,0.55058875,1073.5,1070.6,2.07886106]
[1759434119096,0.55058875,1073.4,1070.6,2.07886106]
[1759434119296,0.55058875,1073.3,1070.7,2.07886106]
[1759434119496,0.83543447,1073.6,1070.7,2.07886106]
[1759434119497,0.55058875,1073.2,1070.7,2.07886106]
[1759434119697,0.55058875,1073.1,1070.7,2.07886106]
[1759434119899,0.55058875,1073.0,1070.7,2.07886106]
[1759434120098,0.83543447,1073.7,1070.7,2.07886106]
[1759434120300,0.55085116,1073.6,1070.5,2.07886106]
[1759434120600,0.55085116,1073.5,1070.5,2.07886106]
[1759434120795,0.55085116,1073.4,1070.6,2.07886106]
[1759434120998,0.55085116,1073.3,1070.6,2.07886106]
[1759434121201,0.55085116,1073.2,1070.6,2.07886106]
[1759434121399,0.83543447,1073.6,1070.8,2.07886106]
[1759434121602,0.55092838,1073.5,1070.8,2.07886106]
[1759434121799,0.55092838,1073.4,1070.8,2.07886106]
[1759434121998,0.55092838,1073.3,1070.9,2.07886106]
[1759434122199,0.55092838,1073.2,1070.9,2.07886106]
[1759434122401,0.55092838,1073.1,1070.9,2.07886106]
[1759434122602,0.83543447,1073.6,1070.8,2.07886106]
[1759434122803,0.55101364,1073.5,1070.8,2.07886106]
[1759434123000,0.55101364,1073.4,1070.9,2.07886106]
[1759434123201,0.55101364,1073.3,1070.9,2.07886106]
[1759434123401,0.55101364,1073.2,1070.9,2.07886106]
[1759434123701,0.55101364,1073.1,1070.5,4.99033761]
[1759434123900,0.83543447,1073.7,1070.5,4.99033761]
[1759434124100,0.55110113,1073.6,1070.5,2.07886106]
[1759434124301,0.55110113,1073.5,1070.5,2.07886106]
[1759434124601,0.55110113,1073.4,1070.5,2.07886106]
[1759434124799,0.55110113,1073.3,1070.5,2.07886106]
[1759434125004,0.55110113,1073.2,1070.5,2.07886106]
[1759434125204,0.55110113,1073.1,1070.5,2.07886106]
[1759434125402,0.83543447,1073.7,1070.5,2.07886106]
[1759434125605,0.55130545,1073.6,1070.9,2.07886106]
[1759434125805,0.55130545,1073.5,1070.9,2.07886106]
[1759434126002,0.55130545,1073.4,1070.9,2.07886106]
[1759434126206,0.83543447,1074.0,1071.0,2.07886106]
[1759434126505,0.55112856,1073.9,1071.0,2.07886106]
[1759434126702,0.55112856,1073.8,1071.1,2.07886106]
[1759434127005,0.55112856,1073.7,1071.1,2.07886106]
[1759434127201,0.55112856,1073.6,1071.2,2.07886106]
[1759434127405,0.55112856,1073.5,1071.2,2.07886106]
[1759434127602,0.83543447,1074.2,1071.2,2.07886106]
[1759434127806,0.55104103,1074.1,1071.2,2.07886106]
[1759434128103,0.55104103,1074.0,1071.2,2.07886106]
[1759434128303,0.55104103,1073.9,1071.4,2.07886106]
[1759434128502,0.83543447,1074.2,1071.4,2.07886106]
[1759434128503,0.55104103,1073.8,1071.4,2.07886106]
[1759434128702,0.55104103,1073.7,1071.3,2.07886106]
[1759434129005,0.55104103,1073.6,1071.3,2.07886106]
[1759434129202,0.83543447,1074.2,1071.3,2.07886106]
[1759434129507,0.55087181,1074.1,1071.3,2.07886106]
[1759434129803,0.55087181,1074.0,1071.3,2.07886106]
[1759434130005,0.55087181,1073.9,1071.3,2.07886106]
[1759434130203,0.55087181,1073.8,1071.3,2.07886106]
[1759434130406,0.55087181,1073.7,1071.3,2.07886106]
[1759434130606,0.55087181,1073.6,1071.3,2.07886106]
[1759434130807,0.83543447,1074.2,1071.3,2.07886106]
[1759434131008,0.5508291,1074.1,1071.3,2.07886106]
[1759434131207,0.5508291,1074.0,1071.3,2.07886106]
[1759434131403,0.5508291,1073.9,1071.3,2.07886106]
[1759434131608,0.5508291,1073.8,1071.3,2.07886106]
[1759434131805,0.5508291,1073.7,1071.4,2.07886106]
[1759434132103,0.83543447,1074.2,1071.4,2.07886106]
[1759434132104,0.5508291,1073.6,1071.4,2.07886106]
[1759434132310,1.25306103,1074.4,1070.3,4.15807439]
[1759434132311,0.83543447,1074.4,1070.8,2.07886106]
[1759434132604,0.55082679,1074.3,1070.8,2.07886106]
[1759434132803,0.55082679,1074.2,1070.8,2.07886106]
[1759434133008,0.83543447,1074.4,1070.8,2.07886106]
[1759434133009,0.55082679,1074.1,1070.8,2.07886106]
[1759434133208,0.55082679,1074.0,1070.8,2.07886106]
[1759434133408,0.55082679,1073.9,1070.8,2.07886106]
[1759434133609,0.55082679,1073.8,1070.8,2.07886106]
[1759434133807,0.55082679,1073.7,1070.8,2.07886106]
[1759434134111,0.55082679,1073.6,1070.8,2.07886106]
[1759434134306,0.83543447,1074.4,1070.8,2.07886106]
[1759434134505,0.55071081,1074.3,1070.8,2.07886106]
[1759434134705,0.55071081,1074.2,1070.8,2.07886106]
[1759434135006,0.55071081,1074.1,1070.8,2.07886106]
[1759434135209,0.55071081,1074.0,1070.8,2.07886106]
[1759434135408,0.55071081,1073.9,1070.7,2.07886106]